fUSD/lending_fUSD_20260530
["ID","MTS","AMOUNT","RATE_DAILY","PERIOD"]
[423418196,1780097432000,-582.05,7.513e-05,2]
[423418197,1780097432000,-582.05,7.553e-05,2]
[423418195,1780097432000,-167.54,7.485e-05,2]
[423418198,1780097432000,-571.26316589,7.558e-05,2]
[423418199,1780097432000,-250.0,7.56e-05,2]
[423418204,1780097432000,-582.05,7.711e-05,2]
[423418183,1780097432000,-150.0,7.159e-05,2]
[423418182,1780097432000,-582.05,7.156e-05,2]
[423418171,1780097432000,-250.0,7.029e-05,2]
[423418180,1780097432000,-167.54,7.094e-05,2]
[423418201,1780097432000,-582.05,7.632e-05,2]
[423418168,1780097432000,-863.58,6.793e-05,2]
[423418170,1780097432000,-500.0,7.02e-05,2]
[423418167,1780097432000,-17259.14,6.793e-05,2]
[423418169,1780097432000,-200.0,6.824e-05,2]
[423418173,1780097432000,-209.09056759,7.038e-05,2]
[423418185,1780097432000,-150.0,7.23e-05,2]
[423418172,1780097432000,-589.67702419,7.029e-05,2]
[423418175,1780097432000,-150.0,7.089e-05,2]
[423418177,1780097432000,-1200.0,7.094e-05,2]
[423418179,1780097432000,-150.0,7.094e-05,2]
[423418181,1780097432000,-500.0,7.097e-05,2]
[423418176,1780097432000,-907.0,7.094e-05,2]
[423418184,1780097432000,-582.05,7.196e-05,2]
[423418174,1780097432000,-2691.44527071,7.083e-05,2]
[423418200,1780097432000,-582.05,7.592e-05,2]
[423418226,1780097432000,-1000.0,8.408e-05,2]
[423418206,1780097432000,-582.05,7.751e-05,2]
[423418222,1780097432000,-2000.0,8.219e-05,2]
[423418225,1780097432000,-167.54,8.265e-05,2]
[423418227,1780097432000,-500.0,8.493e-05,2]
[423418229,1780097432000,-433.0,8.584e-05,2]
[423418230,1780097432000,-2500.0,8.648e-05,2]
[423418231,1780097432000,-839.68,8.657e-05,2]
[423418224,1780097432000,-500.0,8.219e-05,2]
[423418228,1780097432000,-2351.0,8.584e-05,2]
[423418237,1780097432000,-293409.88344821,8.748e-05,2]
[423418234,1780097432000,-817408.37874036,8.748e-05,2]
[423418203,1780097432000,-839.68,7.695e-05,2]
[423418238,1780097432000,-1346.83,8.748e-05,2]
[423418236,1780097432000,-185690.18030514,8.748e-05,2]
[423418235,1780097432000,-32015.35758732,8.748e-05,2]
[423418232,1780097432000,-3564.8624,8.702e-05,2]
[423418221,1780097432000,-157.07,8.219e-05,2]
[423418233,1780097432000,-16315.2807,8.702e-05,2]
[423418223,1780097432000,-844.76,8.219e-05,2]
[423418207,1780097432000,-582.05,7.791e-05,2]
[423418219,1780097432000,-500.0,8.219e-05,2]
[423418205,1780097432000,-250.0,7.722e-05,2]
[423418209,1780097432000,-1680.0,7.803e-05,2]
[423418212,1780097432000,-582.05,7.87e-05,2]
[423418211,1780097432000,-582.05,7.83e-05,2]
[423418210,1780097432000,-255.0,7.803e-05,2]
[423418208,1780097432000,-1702.65,7.8e-05,2]
[423418213,1780097432000,-167.54,7.875e-05,2]
[423418215,1780097432000,-582.05,7.91e-05,2]
[423418218,1780097432000,-500.0,8.219e-05,2]
[423418217,1780097432000,-500.0,8.21e-05,2]
[423418214,1780097432000,-1464.2,7.901e-05,2]
[423418216,1780097432000,-1163.579662,8.178e-05,2]
[423418220,1780097432000,-500.0,8.219e-05,2]
[423418246,1780097437000,-314.19530196,7.082e-05,2]
[423418245,1780097437000,-500.0,7.082e-05,2]
[423418248,1780097438000,-335.33859604,7.082e-05,2]
[423418247,1780097438000,-185.80469804,7.082e-05,2]
[423418336,1780097440000,-500.0,7.082e-05,2]
[423418339,1780097440000,-309.96232974,7.082e-05,2]
[423418338,1780097440000,-500.0,7.082e-05,2]
[423418341,1780097440000,-481.77454036,7.082e-05,2]
[423418343,1780097440000,-450.68406318,8.219e-05,2]
[423418340,1780097440000,-190.03767026,7.082e-05,2]
[423418334,1780097440000,-500.0,7.082e-05,2]
[423418342,1780097440000,-18.22545964,7.082e-05,2]
[423418345,1780097440000,-4104.8281,8.748e-05,2]
[423418332,1780097440000,-500.0,7.082e-05,2]
[423418324,1780097440000,-500.0,7.082e-05,2]
[423418333,1780097440000,-500.0,7.082e-05,2]
[423418330,1780097440000,-425.39507011,7.082e-05,2]
[423418335,1780097440000,-500.0,7.082e-05,2]
[423418331,1780097440000,-500.0,7.082e-05,2]
[423418328,1780097440000,-500.0,7.082e-05,2]
[423418327,1780097440000,-500.0,7.082e-05,2]
[423418326,1780097440000,-500.0,7.082e-05,2]
[423418329,1780097440000,-35.62359604,7.082e-05,2]
[423418325,1780097440000,-500.0,7.082e-05,2]
[423418323,1780097440000,-164.66140396,7.082e-05,2]
[423418346,1780097440000,-250.0,8.754e-05,2]
[423418337,1780097440000,-500.0,7.082e-05,2]
[423418344,1780097440000,-170129.36991897,8.748e-05,2]
[423418354,1780097440000,-134293.2348449,8.848e-05,2]
[423418348,1780097440000,-160.0,8.799e-05,2]
[423418347,1780097440000,-500.0,8.767e-05,2]
[423418371,1780097440000,-500.0,9.003e-05,2]
[423418369,1780097440000,-500.0,9.003e-05,2]
[423418368,1780097440000,-500.0,9.003e-05,2]
[423418365,1780097440000,-500.0,9.003e-05,2]
[423418364,1780097440000,-500.0,9.003e-05,2]
[423418363,1780097440000,-500.0,9.003e-05,2]
[423418366,1780097440000,-500.0,9.003e-05,2]
[423418367,1780097440000,-500.0,9.003e-05,2]
[423418362,1780097440000,-500.0,9.003e-05,2]
[423418359,1780097440000,-500.0,9.003e-05,2]
[423418370,1780097440000,-500.0,9.003e-05,2]
[423418360,1780097440000,-500.0,9.003e-05,2]
[423418358,1780097440000,-500.0,9.003e-05,2]
[423418357,1780097440000,-500.0,9.003e-05,2]
[423418353,1780097440000,-3006.2528077,8.848e-05,2]
[423418356,1780097440000,-500.0,9.003e-05,2]
[423418355,1780097440000,-157.07,8.904e-05,2]
[423418352,1780097440000,-173460.3219549,8.848e-05,2]
[423418349,1780097440000,-215.5484138,8.799e-05,2]
[423418350,1780097440000,-9091.8226796,8.848e-05,2]
[423418351,1780097440000,-59554.403179,8.848e-05,2]
[423418361,1780097440000,-507.81285816,9.003e-05,2]
[423418404,1780097441000,-500.0,9.397e-05,2]
[423418409,1780097441000,-500.0,9.397e-05,2]
[423418398,1780097441000,-500.0,9.397e-05,2]
[423418401,1780097441000,-500.0,9.397e-05,2]
[423418396,1780097441000,-272.55956862,9.397e-05,2]
[423418399,1780097441000,-500.0,9.397e-05,2]
[423418407,1780097441000,-500.0,9.397e-05,2]
[423418400,1780097441000,-500.0,9.397e-05,2]
[423418410,1780097441000,-150.0,9.397e-05,2]
[423418411,1780097441000,-500.0,9.397e-05,2]
[423418405,1780097441000,-500.0,9.397e-05,2]
[423418408,1780097441000,-500.0,9.397e-05,2]
[423418403,1780097441000,-500.0,9.397e-05,2]
[423418413,1780097441000,-150.0,9.397e-05,2]
[423418412,1780097441000,-500.0,9.397e-05,2]
[423418414,1780097441000,-500.0,9.397e-05,2]
[423418415,1780097441000,-500.0,9.397e-05,2]
[423418419,1780097441000,-500.0,9.397e-05,2]
[423418397,1780097441000,-500.0,9.397e-05,2]
[423418402,1780097441000,-500.0,9.397e-05,2]
[423418395,1780097441000,-201.93190072,9.397e-05,2]
[423418385,1780097441000,-387.93,9.04e-05,2]
[423418392,1780097441000,-500.0,9.315e-05,2]
[423418373,1780097441000,-500.0,9.003e-05,2]
[423418374,1780097441000,-500.0,9.003e-05,2]
[423418376,1780097441000,-500.0,9.003e-05,2]
[423418375,1780097441000,-500.0,9.003e-05,2]
[423418372,1780097441000,-500.0,9.003e-05,2]
[423418378,1780097441000,-500.0,9.003e-05,2]
[423418379,1780097441000,-500.0,9.003e-05,2]
[423418377,1780097441000,-500.0,9.003e-05,2]
[423418380,1780097441000,-330.41009315,9.003e-05,2]
[423418381,1780097441000,-500.0,9.003e-05,2]
[423418382,1780097441000,-504.28519439,9.003e-05,2]
[423418422,1780097441000,-500.0,9.397e-05,2]
[423418383,1780097441000,-150.0,9.003e-05,2]
[423418384,1780097441000,-500.0,9.014e-05,2]
[423418388,1780097441000,-500.0,9.123e-05,2]
[423418387,1780097441000,-564.44217745,9.049e-05,2]
[423418386,1780097441000,-500.0,9.041e-05,2]
[423418389,1780097441000,-2454.72915916,9.127e-05,2]
[423418390,1780097441000,-1901.76224635,9.127e-05,2]
[423418391,1780097441000,-2000.0,9.247e-05,2]
[423418393,1780097441000,-150.0,9.397e-05,2]
[423418394,1780097441000,-150.0,9.397e-05,2]
[423418421,1780097441000,-150.0,9.397e-05,2]
[423418406,1780097441000,-500.0,9.397e-05,2]
[423418417,1780097441000,-500.0,9.397e-05,2]
[423418448,1780097441000,-803.0,9.397e-05,2]
[423418449,1780097441000,-500.0,9.397e-05,2]
[423418451,1780097441000,-500.0,9.397e-05,2]
[423418450,1780097441000,-803.0,9.397e-05,2]
[423418453,1780097441000,-500.0,9.397e-05,2]
[423418452,1780097441000,-803.0,9.397e-05,2]
[423418455,1780097441000,-803.0,9.397e-05,2]
[423418454,1780097441000,-358.18652267,9.397e-05,2]
[423418456,1780097441000,-803.0,9.397e-05,2]
[423418457,1780097441000,-803.0,9.397e-05,2]
[423418458,1780097441000,-803.0,9.397e-05,2]
[423418459,1780097441000,-803.0,9.397e-05,2]
[423418460,1780097441000,-803.0,9.397e-05,2]
[423418466,1780097441000,-803.0,9.397e-05,2]
[423418462,1780097441000,-803.0,9.397e-05,2]
[423418461,1780097441000,-803.0,9.397e-05,2]
[423418464,1780097441000,-803.0,9.397e-05,2]
[423418463,1780097441000,-803.0,9.397e-05,2]
[423418418,1780097441000,-500.0,9.397e-05,2]
[423418467,1780097441000,-810.14421937,9.397e-05,2]
[423418468,1780097441000,-3292.0,9.442e-05,2]
[423418447,1780097441000,-500.0,9.397e-05,2]
[423418445,1780097441000,-500.0,9.397e-05,2]
[423418465,1780097441000,-803.0,9.397e-05,2]
[423418444,1780097441000,-803.0,9.397e-05,2]
[423418446,1780097441000,-803.0,9.397e-05,2]
[423418424,1780097441000,-500.0,9.397e-05,2]
[423418425,1780097441000,-193.71932887,9.397e-05,2]
[423418427,1780097441000,-500.0,9.397e-05,2]
[423418432,1780097441000,-803.0,9.397e-05,2]
[423418433,1780097441000,-500.0,9.397e-05,2]
[423418429,1780097441000,-500.0,9.397e-05,2]
[423418426,1780097441000,-500.0,9.397e-05,2]
[423418431,1780097441000,-500.0,9.397e-05,2]
[423418430,1780097441000,-500.0,9.397e-05,2]
[423418416,1780097441000,-150.0,9.397e-05,2]
[423418434,1780097441000,-500.0,9.397e-05,2]
[423418428,1780097441000,-500.0,9.397e-05,2]
[423418440,1780097441000,-803.0,9.397e-05,2]
[423418441,1780097441000,-500.0,9.397e-05,2]
[423418438,1780097441000,-803.0,9.397e-05,2]
[423418443,1780097441000,-500.0,9.397e-05,2]
[423418439,1780097441000,-803.0,9.397e-05,2]
[423418442,1780097441000,-803.0,9.397e-05,2]
[423418435,1780097441000,-803.0,9.397e-05,2]
[423418436,1780097441000,-634.96798877,9.397e-05,2]
[423418437,1780097441000,-627.0,9.397e-05,2]
[423418499,1780097442000,-377.98146809,0.0001,2]
[423418491,1780097442000,-2000.0,0.0001,2]
[423418492,1780097442000,-2000.0,0.0001,2]
[423418495,1780097442000,-2000.0,0.0001,2]
[423418493,1780097442000,-151.51,0.0001,2]
[423418494,1780097442000,-2000.0,0.0001,2]
[423418497,1780097442000,-922.73,0.0001,2]
[423418496,1780097442000,-1896.46,0.0001,2]
[423418503,1780097442000,-642.19606749,0.0001,2]
[423418502,1780097442000,-1638.22540425,0.0001,2]
[423418500,1780097442000,-377.98146809,0.0001,2]
[423418501,1780097442000,-377.98146809,0.0001,2]
[423418509,1780097442000,-4000.0,0.00010027,2]
[423418506,1780097442000,-340.09798039,0.0001,2]
[423418505,1780097442000,-340.0,0.0001,2]
[423418504,1780097442000,-340.0,0.0001,2]
[423418507,1780097442000,-308.28320837,0.0001,2]
[423418489,1780097442000,-2000.0,0.0001,2]
[423418498,1780097442000,-384.47,0.0001,2]
[423418487,1780097442000,-2000.0,0.0001,2]
[423418478,1780097442000,-158.868439,9.924e-05,2]
[423418486,1780097442000,-2000.0,0.0001,2]
[423418469,1780097442000,-195.0,9.442e-05,2]
[423418474,1780097442000,-27449.64,9.67e-05,2]
[423418470,1780097442000,-409.0,9.534e-05,2]
[423418472,1780097442000,-500.0,9.589e-05,2]
[423418473,1780097442000,-839.68,9.619e-05,2]
[423418475,1780097442000,-500.0,9.863e-05,2]
[423418471,1780097442000,-157.07,9.589e-05,2]
[423418477,1780097442000,-158.868439,9.924e-05,2]
[423418490,1780097442000,-2000.0,0.0001,2]
[423418476,1780097442000,-158.868439,9.924e-05,2]
[423418479,1780097442000,-151.0,9.924e-05,2]
[423418482,1780097442000,-1173.0,9.972e-05,2]
[423418480,1780097442000,-1272.0,9.972e-05,2]
[423418484,1780097442000,-3638.0,9.972e-05,2]
[423418483,1780097442000,-6066.0,9.972e-05,2]
[423418485,1780097442000,-204.55804527,0.0001,2]
[423418488,1780097442000,-2000.0,0.0001,2]
[423418508,1780097442000,-151.0,0.00010024,2]
[423418481,1780097442000,-525.0,9.972e-05,2]
[423418511,1780097442000,-4190.392,0.00010046,2]
[423418538,1780097442000,-46271.29158447,0.0001032,2]
[423418521,1780097442000,-1545.0,0.00010141,2]
[423418536,1780097442000,-309.0,0.000103,2]
[423418541,1780097442000,-2052.84614774,0.00010388,2]
[423418548,1780097442000,-255.05458548,0.00010394,2]
[423418540,1780097442000,-4609.0,0.00010386,2]
[423418543,1780097442000,-151.0,0.0001039,2]
[423418546,1780097442000,-1267.2,0.0001039,2]
[423418558,1780097442000,-528.973978,0.00010475,2]
[423418561,1780097442000,-9999.99,0.00010475,2]
[423418539,1780097442000,-166.66,0.00010385,2]
[423418550,1780097442000,-500.0,0.00010411,2]
[423418559,1780097442000,-151.0,0.00010475,2]
[423418554,1780097442000,-528.973978,0.00010475,2]
[423418560,1780097442000,-4999.99,0.00010475,2]
[423418562,1780097442000,-508.11,0.00010475,2]
[423418563,1780097442000,-9999.99,0.00010475,2]
[423418565,1780097442000,-6349.52,0.00010475,2]
[423418567,1780097442000,-999.99,0.00010475,2]
[423418510,1780097442000,-1545.0,0.0001003,2]
[423418556,1780097442000,-528.973978,0.00010475,2]
[423418537,1780097442000,-1000.0,0.000103,2]
[423418552,1780097442000,-528.973978,0.00010475,2]
[423418535,1780097442000,-200.0,0.000103,2]
[423418512,1780097442000,-201.924,0.00010046,2]
[423418534,1780097442000,-315.0,0.000103,2]
[423418522,1780097442000,-1545.0,0.00010141,2]
[423418516,1780097442000,-64076.04665976,0.0001007,2]
[423418514,1780097442000,-2000.0,0.00010065,2]
[423418517,1780097442000,-262.86003916,0.000101,2]
[423418513,1780097442000,-166.66,0.00010053,2]
[423418518,1780097442000,-1000.0,0.00010119,2]
[423418515,1780097442000,-6291.02092236,0.00010066,2]
[423418520,1780097442000,-1571.66394522,0.0001014,2]
[423418523,1780097442000,-1586.820872,0.00010165,2]
[423418525,1780097442000,-158.868439,0.00010209,2]
[423418528,1780097442000,-157.07,0.00010274,2]
[423418532,1780097442000,-4000.0,0.00010278,2]
[423418524,1780097442000,-546825.26492,0.00010165,2]
[423418533,1780097442000,-113013.6067992,0.000103,2]
[423418526,1780097442000,-410.12701625,0.00010231,2]
[423418530,1780097442000,-2000.0,0.00010274,2]
[423418519,1780097442000,-500.0,0.00010137,2]
[423418569,1780097443000,-150.99,0.00010475,2]
[423418573,1780097443000,-1753.85827657,0.00010475,2]
[423418571,1780097443000,-10588.28,0.00010475,2]
[423418574,1780097443000,-170.46503772,0.00010475,2]
[423418576,1780097443000,-937.66210983,0.00010475,2]
[423418575,1780097443000,-1276.09811386,0.00010475,2]
[423418584,1780097445000,-1356.0,9.777e-05,2]
[423418586,1780097445000,-971.17968745,0.00010475,2]
[423418585,1780097445000,-151.0,0.00010475,2]
[423418597,1780097448000,-431.885,0.00010475,2]
[423418596,1780097448000,152.0,9.722e-05,7]
[423418602,1780097507000,-150.14587665,7.082e-05,2]
[423418607,1780097532000,-1144.316888,9.532e-05,2]
[423418606,1780097532000,-294.60379828,6.92e-05,2]
[423418609,1780097532000,-928.0,9.777e-05,2]
[423418608,1780097532000,-1409.75915107,9.58e-05,2]
[423418610,1780097532000,-418.0,9.777e-05,2]
[423418605,1780097532000,-205.39620172,6.92e-05,2]
[423418614,1780097532000,-1272.0,9.95e-05,2]
[423418617,1780097532000,-752790.03166743,0.00010165,2]
[423418616,1780097532000,-4000.0,0.00010027,2]
[423418611,1780097532000,-3549.0,9.777e-05,2]
[423418612,1780097532000,-2000.0,9.849e-05,2]
[423418613,1780097532000,-1669.28849522,9.89e-05,2]
[423418615,1780097532000,-525.0,9.95e-05,2]
[423418618,1780097534000,330.0,0.00010466,3]
[423418619,1780097560000,500.0,0.00039391,120]
[423418621,1780097582000,453.03054481,0.00039391,120]
[423418620,1780097582000,-1909.37497144,7.532e-05,2]
[423418623,1780097585000,-1909.37497144,7.532e-05,2]
[423418622,1780097585000,150.0,6.712e-05,2]
[423418624,1780097671000,-150.0,7.529e-05,2]
[423418626,1780097674000,-1.0,7.529e-05,2]
[423418627,1780097674000,-149.0,7.531e-05,2]
[423418625,1780097674000,500.0,0.000264,120]
[423418629,1780097677000,-149.0,7.531e-05,2]
[423418628,1780097677000,-1.0,7.531e-05,2]
[423418630,1780097720000,-150.0,7.53e-05,2]
[423418631,1780097723000,-456.28041784,7.431e-05,2]
[423418633,1780097766000,-150.0,7.53e-05,2]
[423418634,1780097766000,-262.56083568,7.532e-05,2]
[423418632,1780097766000,-43.71958216,7.431e-05,2]
[423418635,1780097769000,-43.71958216,7.53e-05,2]
[423418636,1780097771000,158.0,0.00010267,5]
[423418637,1780097772000,-43.71958216,7.53e-05,2]
[423418638,1780097794000,-212.56083568,7.48e-05,2]
[423418639,1780097821000,-37.43916432,7.48e-05,2]
[423418640,1780097833000,500.0,0.00039392,120]
[423418642,1780097875000,-500.0,7.431e-05,2]
[423418643,1780097891000,6048.28726615,0.00039392,120]
[423418644,1780097929000,-500.0,7.522e-05,2]
[423418645,1780097931000,330.0,0.00010466,3]
[423418646,1780098131000,500.0,0.00039382,120]
[423418647,1780098200000,500.0,0.00026687,120]
[423418648,1780098272000,-992.9180489,7.381e-05,2]
[423418649,1780098274000,330.0,0.00010466,3]
[423418650,1780098274000,-992.9180489,7.381e-05,2]
[423418652,1780098361000,-992.9180489,7.381e-05,2]
[423418655,1780098364000,1000.0,0.00039382,120]
[423418654,1780098364000,-492.9180489,7.38e-05,2]
[423418653,1780098364000,-500.0,7.38e-05,2]
[423418659,1780098366000,-46.1742745,7.38e-05,2]
[423418658,1780098366000,-500.0,7.38e-05,2]
[423418656,1780098366000,-1200.0,7.379e-05,2]
[423418657,1780098366000,-7.0819511,7.38e-05,2]
[423418660,1780098367000,1000.0,0.00039382,120]
[423418664,1780098410000,-299.4305001,7.38e-05,2]
[423418663,1780098410000,-500.0,7.38e-05,2]
[423418661,1780098410000,-453.8257255,7.38e-05,2]
[423418662,1780098410000,-500.0,7.38e-05,2]
[423418665,1780098411000,152.0,0.00010267,5]
[423418667,1780098412000,-300.0,7.379e-05,2]
[423418668,1780098412000,-153.8257255,7.38e-05,2]
[423418670,1780098498000,5000.0,0.00039383,120]
[423418672,1780098498000,-407.0819511,7.38e-05,2]
[423418671,1780098498000,-46.7437744,7.38e-05,2]
[423418673,1780098499000,5000.0,0.00039383,120]
[423418674,1780098500000,5000.0,0.00039383,120]
[423418675,1780098501000,5000.0,0.00039383,120]
[423418677,1780098543000,3000.0,0.00039383,120]
[423418676,1780098543000,-46.7437744,7.381e-05,2]
[423418678,1780098544000,-46.7437744,7.381e-05,2]
[423418679,1780098548000,-46.7437744,7.381e-05,2]
[423418680,1780098590000,-46.7437744,7.381e-05,2]
[423418682,1780098592000,-1638.5117557,7.381e-05,2]
[423418681,1780098592000,-150.0,7.379e-05,2]
[423418683,1780098592000,-36.9750976,7.381e-05,2]
[423418694,1780098636000,-500.0,7.378e-05,2]
[423418696,1780098637000,-345.4149024,7.381e-05,2]
[423418697,1780098637000,-480.07195089,7.431e-05,2]
[423418695,1780098637000,-500.00000001,7.378e-05,2]
[423418701,1780098639000,-560.58041784,7.531e-05,2]
[423418703,1780098639000,-927.57619106,7.532e-05,2]
[423418702,1780098639000,-177.17087209,7.531e-05,2]
[423418700,1780098639000,-19.92804911,7.431e-05,2]
[423418720,1780098641000,-1518.2555301,7.532e-05,2]
[423418719,1780098641000,-167.0,7.451e-05,2]
[423418717,1780098641000,3000.0,0.00039383,120]
[423418740,1780098664000,-500.0,7.532e-05,2]
[423418741,1780098667000,-500.0,7.378e-05,2]
[423418754,1780098668000,-500.0,7.378e-05,2]
[423418758,1780098668000,-160.0,7.671e-05,2]
[423418760,1780098668000,-1000.0,8.011e-05,2]
[423418765,1780098668000,-500.0,8.219e-05,2]
[423418761,1780098668000,-250.0,8.116e-05,2]
[423418768,1780098668000,-500.0,8.219e-05,2]
[423418771,1780098668000,-5430.37,8.219e-05,2]
[423418766,1780098668000,-500.0,8.219e-05,2]
[423418767,1780098668000,-500.0,8.219e-05,2]
[423418753,1780098668000,-500.0,7.378e-05,2]
[423418763,1780098668000,-673.43,8.168e-05,2]
[423418772,1780098668000,-4431.86,8.219e-05,2]
[423418756,1780098668000,-300.0,7.531e-05,2]
[423418750,1780098668000,-500.0,7.378e-05,2]
[423418752,1780098668000,-500.0,7.378e-05,2]
[423418751,1780098668000,-500.0,7.378e-05,2]
[423418755,1780098668000,-2902.2931,7.432e-05,2]
[423418764,1780098668000,-847.785472,8.178e-05,2]
[423418748,1780098668000,-500.0,7.378e-05,2]
[423418759,1780098668000,-28500.978019,7.945e-05,2]
[423418749,1780098668000,-500.0,7.378e-05,2]
[423418746,1780098668000,-379.72811061,7.378e-05,2]
[423418747,1780098668000,-500.0,7.378e-05,2]
[423418742,1780098668000,-500.0,7.378e-05,2]
[423418744,1780098668000,-500.0,7.378e-05,2]
[423418743,1780098668000,-500.0,7.378e-05,2]
[423418757,1780098668000,-1200.0,7.531e-05,2]
[423418762,1780098668000,-255.0,8.117e-05,2]
[423418745,1780098668000,-500.0,7.378e-05,2]
[423418773,1780098668000,-2000.0,8.219e-05,2]
[423418770,1780098668000,-500.0,8.219e-05,2]
[423418800,1780098668000,-155.29,9.616e-05,2]
[423418799,1780098668000,-155.29,9.547e-05,2]
[423418794,1780098668000,-155.29,9.408e-05,2]
[423418791,1780098668000,-155.29,9.27e-05,2]
[423418792,1780098668000,-155.29,9.339e-05,2]
[423418793,1780098668000,-500.0,9.377e-05,2]
[423418797,1780098668000,-150.0,9.452e-05,2]
[423418789,1780098668000,-2000.0,9.247e-05,2]
[423418795,1780098668000,-500.0,9.452e-05,2]
[423418790,1780098668000,-1264.12,9.247e-05,2]
[423418796,1780098668000,-504.28519439,9.452e-05,2]
[423418788,1780098668000,-155.29,9.201e-05,2]
[423418787,1780098668000,-587.0,9.113e-05,2]
[423418798,1780098668000,-155.29,9.477e-05,2]
[423418781,1780098668000,-1335.97,8.439e-05,2]
[423418775,1780098668000,-1264.12,8.22e-05,2]
[423418786,1780098668000,-2351.0,9.113e-05,2]
[423418784,1780098668000,-237.0,8.929e-05,2]
[423418778,1780098668000,-1633.26,8.306e-05,2]
[423418779,1780098668000,-500.0,8.331e-05,2]
[423418785,1780098668000,-166.34,9.076e-05,2]
[423418777,1780098668000,-420.0,8.284e-05,2]
[423418769,1780098668000,-371.04749459,8.219e-05,2]
[423418776,1780098668000,-1680.0,8.284e-05,2]
[423418782,1780098668000,-166.68,8.555e-05,2]
[423418780,1780098668000,-239.14,8.406e-05,2]
[423418783,1780098668000,-33230.1787,8.648e-05,2]
[423418774,1780098668000,-157.86,8.219e-05,2]
[423418840,1780098669000,-803.0,9.726e-05,2]
[423418848,1780098669000,-500.0,9.726e-05,2]
[423418847,1780098669000,-500.0,9.726e-05,2]
[423418843,1780098669000,-803.0,9.726e-05,2]
[423418834,1780098669000,-500.0,9.726e-05,2]
[423418839,1780098669000,-500.0,9.726e-05,2]
[423418837,1780098669000,-193.71932887,9.726e-05,2]
[423418835,1780098669000,-500.0,9.726e-05,2]
[423418830,1780098669000,-500.0,9.726e-05,2]
[423418829,1780098669000,-150.0,9.726e-05,2]
[423418841,1780098669000,-500.0,9.726e-05,2]
[423418838,1780098669000,-500.0,9.726e-05,2]
[423418844,1780098669000,-500.0,9.726e-05,2]
[423418857,1780098669000,-500.0,9.726e-05,2]
[423418845,1780098669000,-500.0,9.726e-05,2]
[423418842,1780098669000,-500.0,9.726e-05,2]
[423418849,1780098669000,-803.0,9.726e-05,2]
[423418851,1780098669000,-500.0,9.726e-05,2]
[423418853,1780098669000,-500.0,9.726e-05,2]
[423418850,1780098669000,-500.0,9.726e-05,2]
[423418852,1780098669000,-803.0,9.726e-05,2]
[423418854,1780098669000,-500.0,9.726e-05,2]
[423418856,1780098669000,-803.0,9.726e-05,2]
[423418855,1780098669000,-500.0,9.726e-05,2]
[423418858,1780098669000,-634.96798877,9.726e-05,2]
[423418831,1780098669000,-500.0,9.726e-05,2]
[423418859,1780098669000,-627.0,9.726e-05,2]
[423418846,1780098669000,-803.0,9.726e-05,2]
[423418828,1780098669000,-803.0,9.726e-05,2]
[423418818,1780098669000,-500.0,9.726e-05,2]
[423418827,1780098669000,-150.0,9.726e-05,2]
[423418860,1780098669000,-803.0,9.726e-05,2]
[423418811,1780098669000,-500.0,9.726e-05,2]
[423418801,1780098669000,-500.0,9.651e-05,2]
[423418804,1780098669000,-155.29,9.685e-05,2]
[423418802,1780098669000,-6400.18,9.67e-05,2]
[423418805,1780098669000,-500.0,9.726e-05,2]
[423418803,1780098669000,-500.0,9.685e-05,2]
[423418809,1780098669000,-201.93190072,9.726e-05,2]
[423418807,1780098669000,-150.0,9.726e-05,2]
[423418808,1780098669000,-150.0,9.726e-05,2]
[423418806,1780098669000,-556.74483437,9.726e-05,2]
[423418810,1780098669000,-272.55956862,9.726e-05,2]
[423418812,1780098669000,-500.0,9.726e-05,2]
[423418833,1780098669000,-150.0,9.726e-05,2]
[423418814,1780098669000,-500.0,9.726e-05,2]
[423418815,1780098669000,-500.0,9.726e-05,2]